[Event "Titled Tuesday Blitz July 18 Early 2023"]
[White "Starosta, Martyna"]
[Black "Suleymanli, Suleyman"]
[WhiteFideId "21818754"]
[BlackFideId "13416375"]
[WhiteElo "2446"]
[BlackElo "2625"]
[Result "0-1"]
[Round "3"]
[TimeControl "180+2"]
[Date "2023.07.18"]
[WhiteClock "0:00:13"]
[BlackClock "0:01:34"]
[Board "99"]

1. d4 {[%clk 0:03:00]}  d5 {[%clk 0:02:56]} 2. Nf3 {[%clk 0:02:59]}  c6 {[%clk 0:02:54]} 3. e3 {[%clk 0:02:59]}  Bf5 {[%clk 0:02:53]} 4. Nh4 {[%clk 0:02:54]}  Be4 {[%clk 0:02:50]} 5. f3 {[%clk 0:02:52]}  Bg6 {[%clk 0:02:49]} 6. Nxg6 {[%clk 0:02:53]}  hxg6 {[%clk 0:02:50]} 7. Bd3 {[%clk 0:02:48]}  e6 {[%clk 0:02:50]} 8. Nd2 {[%clk 0:02:45]}  Bd6 {[%clk 0:02:49]} 9. Nf1 {[%clk 0:02:45]}  Nd7 {[%clk 0:02:42]} 10. Qe2 {[%clk 0:02:45]}  Ngf6 {[%clk 0:02:42]} 11. Bd2 {[%clk 0:02:44]}  e5 {[%clk 0:02:38]} 12. e4 {[%clk 0:02:38]}  dxe4 {[%clk 0:02:35]} 13. Bxe4 {[%clk 0:02:24]}  Qe7 {[%clk 0:02:34]} 14. dxe5 {[%clk 0:02:23]}  Nxe5 {[%clk 0:02:34]} 15. O-O-O {[%clk 0:02:23]}  O-O-O {[%clk 0:02:34]} 16. Bg5 {[%clk 0:02:12]}  Qe6 {[%clk 0:02:31]} 17. Kb1 {[%clk 0:01:52]}  Rd7 {[%clk 0:02:30]} 18. Ng3 {[%clk 0:01:45]}  Nxe4 {[%clk 0:02:29]} 19. Nxe4 {[%clk 0:01:44]}  Nc4 {[%clk 0:02:20]} 20. h3 {[%clk 0:01:26]}  Re8 {[%clk 0:01:52]} 21. Qd3 {[%clk 0:01:21]}  Be5 {[%clk 0:01:39]} 22. Qxd7+ {[%clk 0:01:00]}  Qxd7 {[%clk 0:01:40]} 23. Rxd7 {[%clk 0:01:00]}  Kxd7 {[%clk 0:01:41]} 24. Rd1+ {[%clk 0:00:57]}  Kc8 {[%clk 0:01:41]} 25. c3 {[%clk 0:00:57]}  f5 {[%clk 0:01:38]} 26. Nc5 {[%clk 0:00:57]}  b6 {[%clk 0:01:37]} 27. Nd3 {[%clk 0:00:55]}  Bf6 {[%clk 0:01:37]} 28. Bxf6 {[%clk 0:00:43]}  gxf6 {[%clk 0:01:38]} 29. Nf4 {[%clk 0:00:36]}  g5 {[%clk 0:01:35]} 30. Nh5 {[%clk 0:00:36]}  Re2 {[%clk 0:01:35]} 31. Nxf6 {[%clk 0:00:29]}  Rxb2+ {[%clk 0:01:34]} 32. Kc1 {[%clk 0:00:27]}  Rxa2 {[%clk 0:01:33]} 33. g4 {[%clk 0:00:23]}  Ra1+ {[%clk 0:01:33]} 34. Kc2 {[%clk 0:00:13]}  Ne3+ {[%clk 0:01:34]} 0-1


[Site "https://www.chess.com"]

[Event "Titled Tuesday Blitz July 18 Early 2023"]
[White "Rosh Jain"]
[Black "Onufrienko, Vladislav"]
[WhiteFideId "25789465"]
[BlackFideId "13804332"]
[WhiteElo "2435"]
[BlackElo "2607"]
[Result "0-1"]
[Round "3"]
[TimeControl "180+2"]
[Date "2023.07.18"]
[WhiteClock "0:00:10"]
[BlackClock "0:00:07"]
[Board "101"]

1. e4 {[%clk 0:02:55]}  Nf6 {[%clk 0:02:58]} 2. Nc3 {[%clk 0:02:54]}  e5 {[%clk 0:02:54]} 3. Nf3 {[%clk 0:02:54]}  Nc6 {[%clk 0:02:54]} 4. Bc4 {[%clk 0:02:54]}  Nxe4 {[%clk 0:02:54]} 5. Nxe4 {[%clk 0:02:51]}  d5 {[%clk 0:02:54]} 6. Bxd5 {[%clk 0:02:52]}  Qxd5 {[%clk 0:02:54]} 7. Nc3 {[%clk 0:02:53]}  Qd8 {[%clk 0:02:50]} 8. O-O {[%clk 0:02:53]}  Bd6 {[%clk 0:02:51]} 9. d4 {[%clk 0:02:51]}  exd4 {[%clk 0:02:50]} 10. Re1+ {[%clk 0:02:48]}  Be6 {[%clk 0:02:50]} 11. Nb5 {[%clk 0:02:48]}  Bc5 {[%clk 0:02:41]} 12. Bf4 {[%clk 0:02:20]}  Rc8 {[%clk 0:02:32]} 13. Ng5 {[%clk 0:02:14]}  O-O {[%clk 0:02:32]} 14. Qh5 {[%clk 0:02:08]}  h6 {[%clk 0:02:26]} 15. Nxe6 {[%clk 0:02:03]}  fxe6 {[%clk 0:02:27]} 16. Bxc7 {[%clk 0:01:41]}  Qd5 {[%clk 0:02:02]} 17. Qxd5 {[%clk 0:01:36]}  exd5 {[%clk 0:02:03]} 18. Bg3 {[%clk 0:01:28]}  a6 {[%clk 0:01:51]} 19. Nd6 {[%clk 0:01:28]}  Bxd6 {[%clk 0:01:51]} 20. Bxd6 {[%clk 0:01:29]}  Rf6 {[%clk 0:01:51]} 21. Ba3 {[%clk 0:01:24]}  b5 {[%clk 0:01:48]} 22. Bc5 {[%clk 0:01:18]}  Rf4 {[%clk 0:01:12]} 23. b4 {[%clk 0:01:10]}  a5 {[%clk 0:01:06]} 24. a3 {[%clk 0:01:10]}  a4 {[%clk 0:01:03]} 25. Re6 {[%clk 0:01:01]}  Re4 {[%clk 0:00:56]} 26. Re1 {[%clk 0:00:59]}  Rxe1+ {[%clk 0:00:49]} 27. Rxe1 {[%clk 0:01:00]}  Kf7 {[%clk 0:00:50]} 28. f4 {[%clk 0:00:59]}  Nd8 {[%clk 0:00:37]} 29. Re7+ {[%clk 0:00:56]}  Kf6 {[%clk 0:00:37]} 30. Re8 {[%clk 0:00:30]}  Kf7 {[%clk 0:00:28]} 31. Rf8+ {[%clk 0:00:30]}  Ke6 {[%clk 0:00:24]} 32. Bxd4 {[%clk 0:00:25]}  Ke7 {[%clk 0:00:18]} 33. Bxg7 {[%clk 0:00:16]}  Rxc2 {[%clk 0:00:19]} 34. Rf5 {[%clk 0:00:14]}  Ne6 {[%clk 0:00:18]} 35. Bf6+ {[%clk 0:00:13]}  Kd6 {[%clk 0:00:18]} 36. Be5+ {[%clk 0:00:13]}  Ke7 {[%clk 0:00:17]} 37. Bf6+ {[%clk 0:00:13]}  Kd6 {[%clk 0:00:17]} 38. Re5 {[%clk 0:00:10]}  d4 {[%clk 0:00:17]} 39. Re1 {[%clk 0:00:08]}  d3 {[%clk 0:00:17]} 40. Rd1 {[%clk 0:00:08]}  Nxf4 {[%clk 0:00:17]} 41. g3 {[%clk 0:00:05]}  Nh3+ {[%clk 0:00:16]} 42. Kf1 {[%clk 0:00:04]}  Rf2+ {[%clk 0:00:16]} 43. Ke1 {[%clk 0:00:04]}  Rxf6 {[%clk 0:00:17]} 44. Rxd3+ {[%clk 0:00:05]}  Kc6 {[%clk 0:00:18]} 45. Rc3+ {[%clk 0:00:05]}  Kb6 {[%clk 0:00:18]} 46. Ke2 {[%clk 0:00:05]}  Ng5 {[%clk 0:00:17]} 47. Ke3 {[%clk 0:00:05]}  Rc6 {[%clk 0:00:16]} 48. Rd3 {[%clk 0:00:05]}  Ne6 {[%clk 0:00:16]} 49. h4 {[%clk 0:00:05]}  Ng7 {[%clk 0:00:15]} 50. g4 {[%clk 0:00:05]}  Rf6 {[%clk 0:00:14]} 51. Ke4 {[%clk 0:00:05]}  Rg6 {[%clk 0:00:14]} 52. Kf4 {[%clk 0:00:05]}  h5 {[%clk 0:00:14]} 53. g5 {[%clk 0:00:04]}  Rc6 {[%clk 0:00:15]} 54. Ke5 {[%clk 0:00:04]}  Re6+ {[%clk 0:00:14]} 55. Kd5 {[%clk 0:00:04]}  Re8 {[%clk 0:00:14]} 56. Rc3 {[%clk 0:00:03]}  Rd8+ {[%clk 0:00:13]} 57. Ke5 {[%clk 0:00:03]}  Rf8 {[%clk 0:00:09]} 58. Rd3 {[%clk 0:00:03]}  Nf5 {[%clk 0:00:09]} 59. Rf3 {[%clk 0:00:02]}  Re8+ {[%clk 0:00:09]} 60. Kxf5 {[%clk 0:00:02]}  Kc6 {[%clk 0:00:09]} 61. Kf4 {[%clk 0:00:01]}  Kd5 {[%clk 0:00:10]} 62. Kg3 {[%clk 0:00:02]}  Re4 {[%clk 0:00:10]} 63. g6 {[%clk 0:00:03]}  Rg4+ {[%clk 0:00:10]} 64. Kh3 {[%clk 0:00:04]}  Rxg6 {[%clk 0:00:11]} 65. Rf5+ {[%clk 0:00:05]}  Kc4 {[%clk 0:00:11]} 66. Rxh5 {[%clk 0:00:05]}  Kb3 {[%clk 0:00:10]} 67. Rxb5 {[%clk 0:00:05]}  Kxa3 {[%clk 0:00:10]} 68. h5 {[%clk 0:00:06]}  Rg8 {[%clk 0:00:10]} 69. Kh4 {[%clk 0:00:06]}  Kb3 {[%clk 0:00:10]} 70. Rb7 {[%clk 0:00:06]}  a3 {[%clk 0:00:11]} 71. b5 {[%clk 0:00:06]}  a2 {[%clk 0:00:11]} 72. Ra7 {[%clk 0:00:07]}  Rb8 {[%clk 0:00:10]} 73. h6 {[%clk 0:00:07]}  Rxb5 {[%clk 0:00:10]} 74. Ra8 {[%clk 0:00:07]}  Rb4+ {[%clk 0:00:09]} 75. Kh5 {[%clk 0:00:07]}  Ra4 {[%clk 0:00:10]} 76. Rb8+ {[%clk 0:00:06]}  Kc2 {[%clk 0:00:09]} 77. Rc8+ {[%clk 0:00:06]}  Kd2 {[%clk 0:00:10]} 78. Rd8+ {[%clk 0:00:06]}  Ke2 {[%clk 0:00:11]} 79. Re8+ {[%clk 0:00:07]}  Kf2 {[%clk 0:00:11]} 80. h7 {[%clk 0:00:06]}  a1=Q {[%clk 0:00:11]} 81. h8=Q {[%clk 0:00:04]}  Ra5+ {[%clk 0:00:12]} 82. Kh6 {[%clk 0:00:04]}  Qh1+ {[%clk 0:00:12]} 83. Kg7 {[%clk 0:00:03]}  Rg5+ {[%clk 0:00:12]} 84. Kf7 {[%clk 0:00:03]}  Qf3+ {[%clk 0:00:12]} 85. Ke7 {[%clk 0:00:02]}  Rf5 {[%clk 0:00:11]} 86. Qh2+ {[%clk 0:00:01]}  Kf1 {[%clk 0:00:11]} 87. Kd8 {[%clk 0:00:01]}  Rd5+ {[%clk 0:00:11]} 88. Kc8 {[%clk 0:00:01]}  Qc3+ {[%clk 0:00:11]} 89. Qc7 {[%clk 0:00:02]}  Rc5 {[%clk 0:00:12]} 90. Re7 {[%clk 0:00:02]}  Rxc7+ {[%clk 0:00:12]} 91. Rxc7 {[%clk 0:00:03]}  Qh8+ {[%clk 0:00:12]} 92. Kb7 {[%clk 0:00:03]}  Ke2 {[%clk 0:00:13]} 93. Rc8 {[%clk 0:00:03]}  Qg7+ {[%clk 0:00:12]} 94. Kb8 {[%clk 0:00:04]}  Kd3 {[%clk 0:00:11]} 95. Rc7 {[%clk 0:00:05]}  Qe5 {[%clk 0:00:11]} 96. Kb7 {[%clk 0:00:06]}  Kd4 {[%clk 0:00:11]} 97. Rc6 {[%clk 0:00:07]}  Qe7+ {[%clk 0:00:09]} 98. Rc7 {[%clk 0:00:08]}  Qb4+ {[%clk 0:00:09]} 99. Kc8 {[%clk 0:00:08]}  Kd5 {[%clk 0:00:09]} 100. Kd7 {[%clk 0:00:09]}  Qb5+ {[%clk 0:00:09]} 101. Kd8 {[%clk 0:00:09]}  Kd6 {[%clk 0:00:09]} 102. Kc8 {[%clk 0:00:09]}  Qa4 {[%clk 0:00:07]} 103. Rb7 {[%clk 0:00:09]}  Qa8+ {[%clk 0:00:06]} 104. Rb8 {[%clk 0:00:09]}  Qc6+ {[%clk 0:00:07]} 105. Kd8 {[%clk 0:00:10]}  Qd7# {[%clk 0:00:07]} 0-1


[Site "https://www.chess.com"]

[Event "Titled Tuesday Blitz July 18 Early 2023"]
[White "Fiorito, Francisco"]
[Black "Devaev, Alexander"]
[WhiteFideId "180165"]
[BlackFideId "4169395"]
[WhiteElo "2606"]
[BlackElo "2433"]
[Result "1-0"]
[Round "3"]
[TimeControl "180+2"]
[Date "2023.07.18"]
[WhiteClock "0:00:13"]
[BlackClock "0:00:03"]
[Board "102"]

1. d4 {[%clk 0:03:00]}  Nf6 {[%clk 0:02:57]} 2. Nc3 {[%clk 0:03:00]}  d5 {[%clk 0:02:56]} 3. Bf4 {[%clk 0:03:00]}  c6 {[%clk 0:02:57]} 4. e3 {[%clk 0:02:56]}  Bf5 {[%clk 0:02:57]} 5. f3 {[%clk 0:02:56]}  Qb6 {[%clk 0:02:55]} 6. Rb1 {[%clk 0:02:45]}  Nbd7 {[%clk 0:02:50]} 7. g4 {[%clk 0:02:44]}  Bg6 {[%clk 0:02:50]} 8. h4 {[%clk 0:02:44]}  h5 {[%clk 0:02:50]} 9. g5 {[%clk 0:02:44]}  Nh7 {[%clk 0:02:50]} 10. Bd3 {[%clk 0:02:37]}  Bxd3 {[%clk 0:02:50]} 11. Qxd3 {[%clk 0:02:38]}  g6 {[%clk 0:02:50]} 12. Nge2 {[%clk 0:02:27]}  Bg7 {[%clk 0:02:50]} 13. e4 {[%clk 0:02:25]}  O-O {[%clk 0:02:38]} 14. exd5 {[%clk 0:01:16]}  Rad8 {[%clk 0:02:35]} 15. dxc6 {[%clk 0:01:13]}  bxc6 {[%clk 0:02:33]} 16. Qe3 {[%clk 0:00:54]}  e5 {[%clk 0:01:57]} 17. dxe5 {[%clk 0:00:51]}  Nxe5 {[%clk 0:01:44]} 18. Qxb6 {[%clk 0:00:47]}  axb6 {[%clk 0:01:42]} 19. Kf2 {[%clk 0:00:40]}  b5 {[%clk 0:01:35]} 20. Rhd1 {[%clk 0:00:36]}  Ra8 {[%clk 0:01:26]} 21. b3 {[%clk 0:00:28]}  Rfe8 {[%clk 0:01:16]} 22. a4 {[%clk 0:00:24]}  b4 {[%clk 0:01:04]} 23. Ne4 {[%clk 0:00:24]}  Nf8 {[%clk 0:01:02]} 24. Nd4 {[%clk 0:00:20]}  Ne6 {[%clk 0:00:35]} 25. Bxe5 {[%clk 0:00:15]}  Bxe5 {[%clk 0:00:36]} 26. Nxc6 {[%clk 0:00:16]}  Bg7 {[%clk 0:00:29]} 27. Nxb4 {[%clk 0:00:16]}  Rac8 {[%clk 0:00:15]} 28. Nd6 {[%clk 0:00:15]}  Bf8 {[%clk 0:00:14]} 29. Nxc8 {[%clk 0:00:15]}  Bxb4 {[%clk 0:00:14]} 30. Nd6 {[%clk 0:00:15]}  Bc5+ {[%clk 0:00:09]} 31. Kg3 {[%clk 0:00:13]}  Rc8 {[%clk 0:00:03]} 32. Nxc8 {[%clk 0:00:13]} 1-0


[Site "https://www.chess.com"]

[Event "Titled Tuesday Blitz July 18 Early 2023"]
[White "Uzcategui Rodriguez, Alejandro"]
[Black "Krutko, Anatoly"]
[WhiteFideId "3903400"]
[BlackFideId "4185862"]
[WhiteElo "2433"]
[BlackElo "2603"]
[Result "1-0"]
[Round "3"]
[TimeControl "180+2"]
[Date "2023.07.18"]
[WhiteClock "0:01:01"]
[BlackClock "0:00:53"]
[Board "103"]

1. d4 {[%clk 0:02:59]}  Nf6 {[%clk 0:02:59]} 2. Nf3 {[%clk 0:02:59]}  g6 {[%clk 0:03:00]} 3. Bg5 {[%clk 0:02:59]}  Bg7 {[%clk 0:02:59]} 4. Nbd2 {[%clk 0:02:59]}  d6 {[%clk 0:02:54]} 5. e3 {[%clk 0:02:59]}  O-O {[%clk 0:02:54]} 6. Bc4 {[%clk 0:02:59]}  a6 {[%clk 0:02:53]} 7. a4 {[%clk 0:02:58]}  b6 {[%clk 0:02:53]} 8. O-O {[%clk 0:02:57]}  Bb7 {[%clk 0:02:53]} 9. c3 {[%clk 0:02:57]}  Nbd7 {[%clk 0:02:52]} 10. Re1 {[%clk 0:02:56]}  c5 {[%clk 0:02:50]} 11. b4 {[%clk 0:02:55]}  Qc7 {[%clk 0:02:42]} 12. Rc1 {[%clk 0:02:46]}  Rac8 {[%clk 0:02:35]} 13. Qe2 {[%clk 0:02:37]}  Ra8 {[%clk 0:02:35]} 14. e4 {[%clk 0:02:31]}  e5 {[%clk 0:02:32]} 15. d5 {[%clk 0:02:32]}  h6 {[%clk 0:02:28]} 16. Be3 {[%clk 0:02:31]}  Ng4 {[%clk 0:02:25]} 17. Nf1 {[%clk 0:02:28]}  Nxe3 {[%clk 0:02:22]} 18. Nxe3 {[%clk 0:02:28]}  Nf6 {[%clk 0:02:13]} 19. Nd2 {[%clk 0:02:23]}  Nh5 {[%clk 0:02:12]} 20. g3 {[%clk 0:02:22]}  Qd7 {[%clk 0:02:08]} 21. Nf5 {[%clk 0:02:20]}  Nf6 {[%clk 0:02:03]} 22. Nxg7 {[%clk 0:02:18]}  Kxg7 {[%clk 0:02:04]} 23. b5 {[%clk 0:02:14]}  a5 {[%clk 0:02:03]} 24. Nf1 {[%clk 0:02:13]}  Bc8 {[%clk 0:02:01]} 25. f3 {[%clk 0:02:13]}  Ng8 {[%clk 0:01:58]} 26. Bd3 {[%clk 0:02:11]}  Ne7 {[%clk 0:01:58]} 27. Ne3 {[%clk 0:02:11]}  f5 {[%clk 0:01:57]} 28. Qg2 {[%clk 0:02:10]}  fxe4 {[%clk 0:01:55]} 29. fxe4 {[%clk 0:02:11]}  Ng8 {[%clk 0:01:51]} 30. Rf1 {[%clk 0:02:10]}  Nf6 {[%clk 0:01:51]} 31. Nc4 {[%clk 0:01:55]}  Rb8 {[%clk 0:01:50]} 32. Rf2 {[%clk 0:01:52]}  Ng4 {[%clk 0:01:29]} 33. Rxf8 {[%clk 0:01:50]}  Kxf8 {[%clk 0:01:30]} 34. Rf1+ {[%clk 0:01:50]}  Kg7 {[%clk 0:01:30]} 35. Qf3 {[%clk 0:01:42]}  Qe7 {[%clk 0:01:30]} 36. Nxd6 {[%clk 0:01:30]}  Bd7 {[%clk 0:01:04]} 37. Qf7+ {[%clk 0:01:28]}  Qxf7 {[%clk 0:01:04]} 38. Rxf7+ {[%clk 0:01:29]}  Kg8 {[%clk 0:01:05]} 39. Rxd7 {[%clk 0:01:29]}  Rf8 {[%clk 0:01:03]} 40. Be2 {[%clk 0:01:14]}  Ne3 {[%clk 0:01:00]} 41. Re7 {[%clk 0:01:09]}  h5 {[%clk 0:00:53]} 42. Re8 {[%clk 0:01:01]} 1-0


[Site "https://www.chess.com"]

[Event "Titled Tuesday Blitz July 18 Early 2023"]
[White "Sanchez Alvares, Kelvin Antonio"]
[Black "Vivas Zamora, Fabian Ernesto"]
[WhiteFideId "3906680"]
[BlackFideId "3902480"]
[WhiteElo "2603"]
[BlackElo "2430"]
[Result "1-0"]
[Round "3"]
[TimeControl "180+2"]
[Date "2023.07.18"]
[WhiteClock "0:00:58"]
[BlackClock "0:00:05"]
[Board "104"]

1. e4 {[%clk 0:03:00]}  e6 {[%clk 0:02:59]} 2. d4 {[%clk 0:03:00]}  d5 {[%clk 0:02:58]} 3. Nc3 {[%clk 0:03:01]}  Nf6 {[%clk 0:02:57]} 4. Bg5 {[%clk 0:03:01]}  Bb4 {[%clk 0:02:56]} 5. Ne2 {[%clk 0:03:00]}  h6 {[%clk 0:02:51]} 6. Bxf6 {[%clk 0:02:59]}  Qxf6 {[%clk 0:02:50]} 7. a3 {[%clk 0:02:58]}  Bxc3+ {[%clk 0:02:46]} 8. Nxc3 {[%clk 0:02:59]}  c6 {[%clk 0:02:36]} 9. Bd3 {[%clk 0:02:55]}  O-O {[%clk 0:02:33]} 10. e5 {[%clk 0:02:54]}  Qh4 {[%clk 0:02:19]} 11. O-O {[%clk 0:02:48]}  c5 {[%clk 0:02:09]} 12. dxc5 {[%clk 0:02:41]}  Nd7 {[%clk 0:02:08]} 13. g3 {[%clk 0:02:26]}  Qh3 {[%clk 0:02:06]} 14. Re1 {[%clk 0:02:23]}  Nxc5 {[%clk 0:02:05]} 15. Bf1 {[%clk 0:02:23]}  Qf5 {[%clk 0:02:05]} 16. Qd4 {[%clk 0:02:19]}  b6 {[%clk 0:02:02]} 17. b4 {[%clk 0:02:15]}  Nd7 {[%clk 0:01:40]} 18. Bd3 {[%clk 0:01:59]}  Qh5 {[%clk 0:01:40]} 19. Nb5 {[%clk 0:01:56]}  Ba6 {[%clk 0:01:24]} 20. Be2 {[%clk 0:01:37]}  Qg6 {[%clk 0:01:13]} 21. Bd3 {[%clk 0:01:36]}  Qh5 {[%clk 0:01:13]} 22. c4 {[%clk 0:01:21]}  dxc4 {[%clk 0:01:00]} 23. Bxc4 {[%clk 0:01:21]}  Rfd8 {[%clk 0:00:58]} 24. Qe4 {[%clk 0:01:20]}  Bxb5 {[%clk 0:00:45]} 25. Bxb5 {[%clk 0:01:19]}  Nf8 {[%clk 0:00:44]} 26. Be2 {[%clk 0:01:14]}  Qg6 {[%clk 0:00:43]} 27. Bf3 {[%clk 0:01:14]}  Qxe4 {[%clk 0:00:41]} 28. Bxe4 {[%clk 0:01:14]}  Rac8 {[%clk 0:00:42]} 29. Rac1 {[%clk 0:01:14]}  g6 {[%clk 0:00:32]} 30. Red1 {[%clk 0:01:06]}  Rxd1+ {[%clk 0:00:28]} 31. Rxd1 {[%clk 0:01:07]}  Rc3 {[%clk 0:00:28]} 32. Rd3 {[%clk 0:01:07]}  Rxd3 {[%clk 0:00:25]} 33. Bxd3 {[%clk 0:01:08]}  Nd7 {[%clk 0:00:17]} 34. f4 {[%clk 0:01:08]}  Kf8 {[%clk 0:00:18]} 35. Kf2 {[%clk 0:01:08]}  Ke7 {[%clk 0:00:18]} 36. Ke3 {[%clk 0:01:08]}  Kd8 {[%clk 0:00:09]} 37. Kd4 {[%clk 0:01:07]}  Kc7 {[%clk 0:00:10]} 38. Bb5 {[%clk 0:01:06]}  Nb8 {[%clk 0:00:09]} 39. Be8 {[%clk 0:01:05]}  Nc6+ {[%clk 0:00:10]} 40. Ke4 {[%clk 0:01:04]}  Nd8 {[%clk 0:00:10]} 41. Kd4 {[%clk 0:01:01]}  g5 {[%clk 0:00:09]} 42. Ke4 {[%clk 0:00:59]}  a5 {[%clk 0:00:07]} 43. fxg5 {[%clk 0:00:56]}  hxg5 {[%clk 0:00:07]} 44. Kf3 {[%clk 0:00:56]}  axb4 {[%clk 0:00:08]} 45. axb4 {[%clk 0:00:56]}  Nc6 {[%clk 0:00:08]} 46. Bxc6 {[%clk 0:00:56]}  Kxc6 {[%clk 0:00:08]} 47. h4 {[%clk 0:00:56]}  gxh4 {[%clk 0:00:07]} 48. gxh4 {[%clk 0:00:57]}  Kd5 {[%clk 0:00:07]} 49. Kf4 {[%clk 0:00:57]}  Kc4 {[%clk 0:00:03]} 50. h5 {[%clk 0:00:58]}  Kxb4 {[%clk 0:00:04]} 51. h6 {[%clk 0:00:58]}  b5 {[%clk 0:00:05]} 52. h7 {[%clk 0:00:59]}  Kc3 {[%clk 0:00:05]} 53. h8=Q {[%clk 0:00:59]}  b4 {[%clk 0:00:05]} 54. Qh3+ {[%clk 0:00:58]} 1-0


[Site "https://www.chess.com"]

[Event "Titled Tuesday Blitz July 18 Early 2023"]
[White "Petrosian, Karlen"]
[Black "Skuhala, Barbara"]
[WhiteFideId "4176146"]
[BlackFideId "14605465"]
[WhiteElo "2601"]
[BlackElo "2429"]
[Result "1/2-1/2"]
[Round "3"]
[TimeControl "180+2"]
[Date "2023.07.18"]
[WhiteClock "0:00:06"]
[BlackClock "0:00:34"]
[Board "105"]

1. e4 {[%clk 0:03:00]}  c5 {[%clk 0:02:57]} 2. c3 {[%clk 0:03:00]}  Nf6 {[%clk 0:02:55]} 3. e5 {[%clk 0:02:59]}  Nd5 {[%clk 0:02:55]} 4. Nf3 {[%clk 0:03:00]}  e6 {[%clk 0:02:54]} 5. Bc4 {[%clk 0:02:53]}  Nb6 {[%clk 0:02:53]} 6. Bb3 {[%clk 0:02:53]}  d6 {[%clk 0:02:54]} 7. exd6 {[%clk 0:02:51]}  Bxd6 {[%clk 0:02:52]} 8. d4 {[%clk 0:02:51]}  cxd4 {[%clk 0:02:51]} 9. Qxd4 {[%clk 0:02:50]}  O-O {[%clk 0:02:51]} 10. O-O {[%clk 0:02:49]}  Nc6 {[%clk 0:02:50]} 11. Qe4 {[%clk 0:02:44]}  Qf6 {[%clk 0:02:43]} 12. Rd1 {[%clk 0:02:33]}  Bc7 {[%clk 0:02:43]} 13. Bg5 {[%clk 0:02:30]}  Qf5 {[%clk 0:02:42]} 14. Qxf5 {[%clk 0:02:29]}  exf5 {[%clk 0:02:43]} 15. Na3 {[%clk 0:02:28]}  Be6 {[%clk 0:02:42]} 16. Nb5 {[%clk 0:02:26]}  Bd8 {[%clk 0:02:40]} 17. Bf4 {[%clk 0:02:16]}  Nc4 {[%clk 0:02:14]} 18. Rab1 {[%clk 0:02:02]}  N6a5 {[%clk 0:02:06]} 19. Nc7 {[%clk 0:01:54]}  Bxc7 {[%clk 0:02:06]} 20. Bxc7 {[%clk 0:01:54]}  Nxb3 {[%clk 0:02:06]} 21. axb3 {[%clk 0:01:55]}  Nb6 {[%clk 0:02:06]} 22. Bxb6 {[%clk 0:01:50]}  axb6 {[%clk 0:02:05]} 23. Nd4 {[%clk 0:01:51]}  Rfd8 {[%clk 0:02:03]} 24. f3 {[%clk 0:01:44]}  g6 {[%clk 0:02:02]} 25. Kf2 {[%clk 0:01:44]}  Kf8 {[%clk 0:02:00]} 26. Ra1 {[%clk 0:01:44]}  Ke7 {[%clk 0:01:59]} 27. Ke3 {[%clk 0:01:42]}  Kf6 {[%clk 0:01:57]} 28. Ra3 {[%clk 0:01:33]}  Rxa3 {[%clk 0:01:56]} 29. bxa3 {[%clk 0:01:33]}  Re8 {[%clk 0:01:57]} 30. Kf2 {[%clk 0:01:31]}  Rd8 {[%clk 0:01:55]} 31. Re1 {[%clk 0:01:26]}  Rc8 {[%clk 0:01:54]} 32. Rc1 {[%clk 0:01:25]}  Ra8 {[%clk 0:01:53]} 33. a4 {[%clk 0:01:25]}  Rc8 {[%clk 0:01:47]} 34. f4 {[%clk 0:01:24]}  Bd5 {[%clk 0:01:45]} 35. g3 {[%clk 0:01:22]}  Be4 {[%clk 0:01:45]} 36. Nb5 {[%clk 0:01:05]}  Rd8 {[%clk 0:01:43]} 37. Ke3 {[%clk 0:01:04]}  Rd3+ {[%clk 0:01:41]} 38. Ke2 {[%clk 0:01:04]}  Rd7 {[%clk 0:01:39]} 39. Ke1 {[%clk 0:00:54]}  Re7 {[%clk 0:01:34]} 40. Kd2 {[%clk 0:00:54]}  Rd7+ {[%clk 0:01:34]} 41. Ke3 {[%clk 0:00:55]}  Rd3+ {[%clk 0:01:34]} 42. Ke2 {[%clk 0:00:55]}  Rd7 {[%clk 0:01:34]} 43. Nd4 {[%clk 0:00:55]}  Re7 {[%clk 0:01:32]} 44. Kd2 {[%clk 0:00:55]}  Rd7 {[%clk 0:01:32]} 45. Ra1 {[%clk 0:00:54]}  Rd5 {[%clk 0:01:30]} 46. Ke3 {[%clk 0:00:54]}  Rc5 {[%clk 0:01:30]} 47. c4 {[%clk 0:00:54]}  Ke7 {[%clk 0:01:25]} 48. Rc1 {[%clk 0:00:51]}  Rc8 {[%clk 0:01:21]} 49. Ra1 {[%clk 0:00:41]}  Ra8 {[%clk 0:01:20]} 50. Kd2 {[%clk 0:00:41]}  Kd6 {[%clk 0:01:20]} 51. Kc3 {[%clk 0:00:41]}  Kc7 {[%clk 0:01:17]} 52. b4 {[%clk 0:00:40]}  Re8 {[%clk 0:01:16]} 53. a5 {[%clk 0:00:37]}  bxa5 {[%clk 0:01:16]} 54. Rxa5 {[%clk 0:00:38]}  Bc6 {[%clk 0:01:16]} 55. Nxc6 {[%clk 0:00:36]}  Kxc6 {[%clk 0:01:15]} 56. Ra2 {[%clk 0:00:32]}  Re3+ {[%clk 0:01:14]} 57. Kd4 {[%clk 0:00:33]}  Rb3 {[%clk 0:01:13]} 58. b5+ {[%clk 0:00:32]}  Kc7 {[%clk 0:01:13]} 59. Re2 {[%clk 0:00:32]}  Kd7 {[%clk 0:01:11]} 60. Kc5 {[%clk 0:00:33]}  Rc3 {[%clk 0:01:00]} 61. Rd2+ {[%clk 0:00:33]}  Kc7 {[%clk 0:01:00]} 62. Kd4 {[%clk 0:00:33]}  Rc1 {[%clk 0:01:00]} 63. c5 {[%clk 0:00:29]}  Rb1 {[%clk 0:00:59]} 64. Kc4 {[%clk 0:00:18]}  Rc1+ {[%clk 0:00:59]} 65. Kd5 {[%clk 0:00:18]}  Rb1 {[%clk 0:00:58]} 66. b6+ {[%clk 0:00:19]}  Kd7 {[%clk 0:00:57]} 67. Rd3 {[%clk 0:00:13]}  Rb4 {[%clk 0:00:54]} 68. h4 {[%clk 0:00:11]}  f6 {[%clk 0:00:53]} 69. Ra3 {[%clk 0:00:09]}  Rb1 {[%clk 0:00:51]} 70. Rd3 {[%clk 0:00:08]}  Rb4 {[%clk 0:00:50]} 71. Rd4 {[%clk 0:00:06]}  Rb1 {[%clk 0:00:38]} 72. Kc4+ {[%clk 0:00:07]}  Ke7 {[%clk 0:00:35]} 73. Rd6 {[%clk 0:00:05]}  Rc1+ {[%clk 0:00:33]} 74. Kb4 {[%clk 0:00:06]}  Rb1+ {[%clk 0:00:34]} 75. Kc4 {[%clk 0:00:06]}  Rc1+ {[%clk 0:00:34]} 76. Kb4 {[%clk 0:00:06]}  Rb1+ {[%clk 0:00:34]} 77. Kc4 {[%clk 0:00:06]} 1/2-1/2


[Site "https://www.chess.com"]